[Event "56th Rubinstein Memorial A 2020"]
[Site "Polanica Zdroj"]
[Date "2020.08.20"]
[Round "6.19"]
[White "Czarniecka, Aleksandra"]
[Black "Siekanska, Maria"]
[Result "1-0"]
[ECO "B81"]
[WhiteElo "2043"]
[BlackElo "1928"]
[Annotator "ChessBase"]
[PlyCount "97"]
[EventDate "2020.08.15"]
[EventType "swiss"]
[EventCountry "POL"]
[SourceTitle "playchess.com"]
[Source "ChessBase"]
[SourceQuality "1"]
[TimeControl "40/5400+30:1800+30"]

1. e4 {[%emt 0:00:00]} c5 {[%emt 0:00:00]} 2. Nf3 {[%emt 0:00:00]} e6 {[%emt 0:00:00]} 3. d4 {[%emt 0:00:00]} cxd4 {[%emt 0:00:00]} 4. Nxd4 {[%emt 0:00:00]} Nf6 {[%emt 0:00:00]} 5. Nc3 {[%emt 0:00:00]} d6 {[%emt 0:00:08]} 6. g4 {[%emt 0:00:00]} Nc6 {[%emt 0:00:07]} 7. g5 {[%emt 0:00:07]} Nd7 {[%emt 0:00:06]} 8. Be3 {[%emt 0:00:18]} Be7 {[%emt 0:00:11]} 9. h4 {[%emt 0:00:08]} O-O {[%emt 0:00:13]} 10. Qd2 {[%emt 0:00:44]} Nde5 {[%emt 0:00:19]} 11. Be2 {[%emt 0:00:15]} Nxd4 {[%emt 0:00:43]} 12. Bxd4 {[%emt 0:00:37]} Nc6 {[%emt 0:00:10]} 13. Be3 {[%emt 0:00:39]} Qa5 {[%emt 0:00:34]} 14. h5 {[%emt 0:04:03]} Rd8 {[%emt 0:01:20]} 15. Nb5 {[%emt 0:24:51]} Qxd2+ {[%emt 0:02:40]} 16. Bxd2 {[%emt 0:00:49]} a6 {[%emt 0:01:09]} 17. Nc3 {[%emt 0:00:37]} d5 {[%emt 0:01:31]} 18. O-O-O {[%emt 0:12:36]} d4 {[%emt 0:03:34]} 19. Na4 {[%emt 0:00:25]} b5 {[%emt 0:09:14]} 20. Nb6 {[%emt 0:00:08]} Rb8 {[%emt 0:01:42]} 21. Nxc8 {[%emt 0:00:13]} Rbxc8 {[%emt 0:01:01]} 22. f4 {[%emt 0:09:43]} b4 {[%emt 0:04:05]} 23. Bxa6 {[%emt 0:07:34]} Rc7 {[%emt 0:03:13]} 24. Kb1 {[%emt 0:12:08]} Ra8 {[%emt 0:05:24]} 25. Bb5 {[%emt 0:02:37]} Na7 {[%emt 0:03:06]} 26. Bd3 {[%emt 0:02:38]} Nc8 {[%emt 0:01:23]} 27. e5 {[%emt 0:06:51]} Nb6 {[%emt 0:01:08]} 28. Be4 {[%emt 0:02:31]} Ra6 {[%emt 0:01:25]} 29. Bd3 {[%emt 0:00:06]} Ra8 {[%emt 0:00:25]} 30. Be4 {[%emt 0:00:08]} Ra6 {[%emt 0:01:00]} 31. Be1 {[%emt 0:02:13]} Bc5 {[%emt 0:02:13]} 32. c3 {[%emt 0:01:01]} bxc3 {[%emt 0:01:33]} 33. bxc3 {[%emt 0:00:12]} Na4 {[%emt 0:00:38]} 34. Bc2 {[%emt 0:05:50]} dxc3 {[%emt 0:14:24]} 35. Bxa4 {[%emt 0:00:53]} Rxa4 {[%emt 0:01:02]} 36. Bxc3 {[%emt 0:00:43]} Bf8 {[%emt 0:00:14]} 37. Bb2 {[%emt 0:01:15]} Be7 {[%emt 0:08:40]} 38. Rc1 {[%emt 0:01:37]} Rac4 {[%emt 0:02:21]} 39. Rxc4 {[%emt 0:00:42]} Rxc4 {[%emt 0:00:03]} 40. Rc1 {[%emt 0:00:00]} Rxc1+ {[%emt 0:00:00]} 41. Bxc1 {[%emt 0:06:09]} f6 {[%emt 0:02:15]} 42. Kc2 {[%emt 0:00:35]} Kf7 {[%emt 0:01:55]} 43. Kb3 {[%emt 0:02:26]} Bd8 {[%emt 0:03:02]} 44. Kc4 {[%emt 0:00:52]} fxe5 {[%emt 0:03:33]} 45. fxe5 {[%emt 0:00:09]} Ke7 {[%emt 0:00:06]} 46. Ba3+ {[%emt 0:03:19]} Kf7 {[%emt 0:02:17]} 47. Bc1 {[%emt 0:00:07]} Ke7 {[%emt 0:00:03]} 48. g6 {[%emt 0:01:03]} hxg6 {[%emt 0:00:08]} 49. Bg5+ {[%emt 0:00:29]} 1-0

[Event "56th Rubinstein Memorial A 2020"]
[Site "Polanica Zdroj"]
[Date "2020.08.20"]
[Round "6.20"]
[White "Starosciak, Szymon"]
[Black "Jachym, Adam"]
[Result "1/2-1/2"]
[ECO "C90"]
[WhiteElo "1850"]
[BlackElo "2042"]
[Annotator "NA"]
[PlyCount "95"]
[EventDate "2020.08.15"]
[EventType "swiss"]
[EventCountry "POL"]
[SourceTitle "playchess.com"]
[Source "ChessBase"]
[SourceQuality "1"]
[TimeControl "40/5400+30:1800+30"]

1. e4 {[%emt 0:00:00]} e5 {[%emt 0:00:00]} 2. Nf3 {[%emt 0:00:00]} Nc6 {[%emt 0:00:00]} 3. Bb5 {[%emt 0:00:01]} Nf6 {[%emt 0:00:00]} 4. d3 {[%emt 0:00:10]} d6 {[%emt 0:02:53]} 5. c3 {[%emt 0:01:57]} Be7 {[%emt 0:00:53]} 6. O-O {[%emt 0:00:14]} O-O {[%emt 0:00:21]} 7. Re1 {[%emt 0:01:40]} a6 {[%emt 0:07:17]} 8. Ba4 {[%emt 0:00:25]} b5 {[%emt 0:00:21]} 9. Bb3 {[%emt 0:01:33]} Na5 {[%emt 0:01:15]} 10. Bc2 {[%emt 0:00:14]} c5 {[%emt 0:00:42]} 11. a4 {[%emt 0:02:41]} b4 {[%emt 0:02:11] was the old line (11...Rb8).} 12. Nbd2 {[%emt 0:02:02]} Rb8 {[%emt 0:04:51]} 13. Nf1 {[%emt 0:07:04] C88: Closed Ruy Lopez: Anti-Marshall Systems.} Re8 {[%emt 0:02:13]} 14. Ng3 {[%emt 0:01:38]} Bf8 {[%emt 0:06:46]} 15. d4 {[%emt 0:06:24] [#]} Qc7 $146 {[%emt 0:03:16]} ({Predecessor:} 15... b3 16. Bd3 h6 17. h3 Qc7 18. Be3 exd4 19. cxd4 c4 20. Bb1 c3 21. bxc3 Qxc3 {0-1 (32) Gallego Alcaraz,A (2512)-Quesada Perez,Y (2565) chess24.com INT 2020}) 16. Bg5 {[%emt 0:08:01]} Nd7 {[%emt 0:09:12]} 17. dxe5 {[%emt 0:03:33]} Nxe5 {[%emt 0:01:20]} 18. Nxe5 {[%emt 0:00:48]} dxe5 {[%emt 0:00:21]} 19. Nf5 {[%emt 0:08:52]} f6 {[%emt 0:07:21]} 20. Bc1 {[%emt 0:00:30]} Be6 {[%emt 0:01:30]} 21. Ne3 {[%emt 0:01:49]} Red8 {[%emt 0:06:32]} 22. Qe2 {[%emt 0:01:32]} bxc3 {[%emt 0:07:43]} 23. bxc3 {[%emt 0:01:13]} c4 {[%emt 0:00:18]} 24. Rd1 {[%emt 0:05:56]} Rxd1+ {[%emt 0:06:52]} 25. Qxd1 {[%emt 0:01:06]} Nb3 {[%emt 0:03:12]} 26. Rb1 {[%emt 0:00:57]} (26. Ra2 $15) 26... Nxc1 {[%emt 0:03:41]} 27. Rxb8 {[%emt 0:02:17]} Qxb8 {[%emt 0:01:34]} 28. Qxc1 {[%emt 0:00:08]} Bc5 {[%emt 0:02:35]} 29. Nd5 {[%emt 0:02:17]} a5 {[%emt 0:05:56]} 30. Qb1 {[%emt 0:03:09]} Qxb1+ {[%emt 0:04:06]} 31. Bxb1 {[%emt 0:00:08]} Bd7 {[%emt 0:00:19]} 32. Bc2 {[%emt 0:02:46]} Kf7 {[%emt 0:00:55]} 33. Ne3 {[%emt 0:00:29]} Bxe3 {[%emt 0:00:37]} 34. fxe3 {[%emt 0:00:04]} Bc6 {[%emt 0:00:35]} 35. Kf2 {[%emt 0:00:47]} h5 {[%emt 0:02:00]} 36. h4 {[%emt 0:01:57]} Ke6 {[%emt 0:00:24]} 37. g3 {[%emt 0:01:54]} Be8 {[%emt 0:03:25]} 38. Kg2 {[%emt 0:01:33]} g6 {[%emt 0:00:53]} 39. Kf3 {[%emt 0:03:56]} g5 {[%emt 0:01:14]} 40. Kf2 {[%emt 0:00:00]} Bc6 {[%emt 0:00:00]} 41. Ke2 {[%emt 0:02:09]} Be8 {[%emt 0:02:46]} 42. Kf2 {[%emt 0:01:30]} Bg6 {[%emt 0:03:02]} 43. Kf3 {[%emt 0:00:40]} Kd6 {[%emt 0:01:52]} 44. Kf2 {[%emt 0:00:39]} Ke6 {[%emt 0:01:26]} ({Black should play} 44... Be8 $17) 45. Kf3 $1 {[%emt 0:00:21]} g4+ {[%emt 0:01:06]} 46. Kf2 {[%emt 0:01:02]} f5 $11 {[%emt 0:00:11]} (46... Kd7 $17) 47. exf5+ {[%emt 0:01:57]} Bxf5 {[%emt 0:00:10]} 48. e4 {[%emt 0:00:43]} 1/2-1/2

[Event "56th Rubinstein Memorial A 2020"]
[Site "Polanica Zdroj"]
[Date "2020.08.21"]
[Round "7.2"]
[White "Mirowska, Oliwia"]
[Black "Kazmierowski, Tymon"]
[Result "0-1"]
[ECO "A00"]
[WhiteElo "1898"]
[BlackElo "1844"]
[Annotator "NA RC"]
[PlyCount "64"]
[EventDate "2020.08.15"]
[EventType "swiss"]
[EventCountry "POL"]
[SourceTitle "playchess.com"]
[Source "ChessBase"]
[SourceQuality "1"]
[TimeControl "40/5400+30:1800+30"]

1. a3 {[%emt 0:07:04]} Nf6 {[%emt 0:00:00]} 2. d3 {[%emt 0:00:07]} d5 {[%emt 0:00:15]} 3. g3 {[%emt 0:00:17]} g6 {[%emt 0:00:10]} 4. Bg2 {[%emt 0:00:18]} Bg7 {[%emt 0:00:07]} 5. e3 {[%emt 0:01:19]} c5 {[%emt 0:01:05]} 6. Ne2 {[%emt 0:00:13] [#] A00: Irregular Openings.} Nc6 $146 {[%emt 0:01:25]} ({Predecessor:} 6... O-O 7. Nd2 Nc6 8. h3 b6 9. e4 Bb7 10. exd5 Nxd5 11. Ne4 Rb8 12. h4 h6 {0-1 (27) Rotter,H (1922)-Surtmann,L (1837) Hoersching 2017}) 7. b3 {[%emt 0:02:15]} O-O {[%emt 0:06:49]} 8. Bb2 {[%emt 0:03:00]} Qc7 {[%emt 0:03:13]} 9. O-O {[%emt 0:00:26]} Rd8 {[%emt 0:01:31]} 10. Nd2 {[%emt 0:01:13]} e5 {[%emt 0:01:18]} 11. Rb1 {[%emt 0:03:36]} Be6 {[%emt 0:08:15]} 12. e4 {[%emt 0:10:06]} dxe4 {[%emt 0:13:24]} 13. Nxe4 {[%emt 0:00:25]} Nxe4 {[%emt 0:00:38]} 14. Bxe4 {[%emt 0:00:21]} f5 {[%emt 0:04:41]} 15. Bg2 {[%emt 0:00:41] [#]} Qf7 {[%emt 0:00:47]} (15... c4 $1 $15 {[%mdl 512]}) 16. Qc1 {[%emt 0:03:42]} (16. Bxc6 $1 $11 bxc6 17. Qc1) 16... Bd5 {[%emt 0:02:47]} 17. f4 {[%emt 0:03:31]} Bxg2 {[%emt 0:02:19]} 18. Kxg2 {[%emt 0:02:04]} Qd5+ {[%emt 0:00:47]} 19. Kg1 {[%emt 0:00:08]} e4 {[%emt 0:00:52]} 20. Rd1 {[%emt 0:04:06]} (20. dxe4 $15 Qxe4 21. Bxg7 Kxg7 22. Rf2) 20... Nd4 {[%emt 0:14:02]} 21. Nxd4 {[%emt 0:11:19]} cxd4 {[%emt 0:03:07]} 22. dxe4 {[%emt 0:05:24]} fxe4 {[%emt 0:02:25]} 23. Qd2 {[%emt 0:00:36]} Rac8 {[%emt 0:01:45]} 24. Qf2 {[%emt 0:04:38]} h5 {[%emt 0:10:51]} 25. Ba1 {[%emt 0:02:00]} h4 {[%emt 0:02:57]} 26. Rbc1 {[%emt 0:03:12]} h3 {[%emt 0:03:06]} 27. Qf1 {[%emt 0:01:07]} Qf5 {[%emt 0:02:07]} 28. Qe2 {[%emt 0:03:40]} e3 {[%emt 0:06:06]} 29. Rd3 {[%emt 0:00:39]} Qe4 {[%emt 0:00:34]} 30. Rcd1 {[%emt 0:01:11] [#]} Rxc2 $19 {[%emt 0:00:59]} 31. Qxc2 {[%emt 0:04:19]} e2 {[%emt 0:00:07]} 32. Kf2 {[%emt 0:01:18]} e1=Q+ {[%emt 0:00:59]} 0-1

[Event "56th Rubinstein Memorial A 2020"]
[Site "Polanica Zdroj"]
[Date "2020.08.21"]
[Round "7.4"]
[White "Hetzer, Volkhard"]
[Black "Wojcik, Wieslaw"]
[Result "1-0"]
[ECO "A04"]
[WhiteElo "1911"]
[BlackElo "1863"]
[Annotator "RC"]
[PlyCount "66"]
[EventDate "2020.08.15"]
[EventType "swiss"]
[EventCountry "POL"]
[SourceTitle "playchess.com"]
[Source "ChessBase"]
[SourceQuality "1"]
[TimeControl "40/5400+30:1800+30"]

1. Nf3 {[%emt 0:00:00]} d6 {[%emt 0:00:11]} 2. e4 {[%emt 0:05:08]} c5 {[%emt 0:00:37]} 3. c3 {[%emt 0:03:04]} Nf6 {[%emt 0:01:52]} 4. h3 {[%emt 0:01:36]} Nc6 {[%emt 0:03:05]} 5. Bd3 {[%emt 0:05:01]} e5 {[%emt 0:12:01]} 6. Bc2 {[%emt 0:02:28]} Be7 {[%emt 0:09:25]} 7. d3 {[%emt 0:05:22]} O-O {[%emt 0:01:48]} 8. O-O {[%emt 0:00:11]} d5 {[%emt 0:04:33]} 9. Nbd2 {[%emt 0:02:45]} dxe4 {[%emt 0:07:14]} 10. dxe4 {[%emt 0:00:08]} Qc7 {[%emt 0:00:51]} 11. Qe2 {[%emt 0:01:24]} h6 {[%emt 0:01:17]} 12. Re1 {[%emt 0:03:10]} Be6 {[%emt 0:00:45]} 13. Nf1 {[%emt 0:04:25]} Rfd8 {[%emt 0:03:47]} 14. Ng3 {[%emt 0:05:20]} Rab8 {[%emt 0:02:03]} 15. Nf5 {[%emt 0:15:24]} Bf8 {[%emt 0:00:31]} 16. N3h4 {[%emt 0:03:22]} Ne7 {[%emt 0:04:44]} 17. Qf3 {[%emt 0:09:14]} Nxf5 {[%emt 0:00:40]} 18. exf5 {[%emt 0:02:55]} Bd5 {[%emt 0:10:34]} 19. Qg3 {[%emt 0:00:12]} Kh8 {[%emt 0:00:28]} 20. Nf3 {[%emt 0:02:37]} Bxf3 {[%emt 0:01:20]} 21. Qxf3 {[%emt 0:00:06]} Bd6 {[%emt 0:15:47]} 22. g4 {[%emt 0:06:46]} Re8 {[%emt 0:08:09]} 23. h4 {[%emt 0:05:34]} e4 {[%emt 0:02:58]} 24. Qg2 {[%emt 0:04:23]} Bf4 {[%emt 0:00:25]} 25. g5 {[%emt 0:00:19]} Nh7 {[%emt 0:01:51]} 26. Qg4 {[%emt 0:04:16]} Bxc1 {[%emt 0:02:22]} 27. Raxc1 {[%emt 0:00:16]} hxg5 {[%emt 0:00:30]} 28. hxg5 {[%emt 0:00:14]} Qe7 {[%emt 0:01:18]} 29. f4 {[%emt 0:02:17]} g6 {[%emt 0:01:29]} 30. f6 {[%emt 0:04:39]} Qe6 {[%emt 0:00:09]} 31. Qh4 {[%emt 0:00:29]} e3 {[%emt 0:00:44]} 32. Re2 {[%emt 0:00:26]} Rbd8 {[%emt 0:00:20]} 33. Rh2 {[%emt 0:00:23]} Ra8 1-0

[Event "56th Rubinstein Memorial A 2020"]
[Site "Polanica Zdroj"]
[Date "2020.08.21"]
[Round "7.6"]
[White "Antoniewicz, Jakub"]
[Black "Bojczewski, Mateusz"]
[Result "0-1"]
[ECO "A45"]
[WhiteElo "1806"]
[BlackElo "1886"]
[Annotator "NA RC"]
[PlyCount "106"]
[EventDate "2020.08.15"]
[EventType "swiss"]
[EventCountry "POL"]
[SourceTitle "playchess.com"]
[Source "ChessBase"]
[SourceQuality "1"]
[TimeControl "40/5400+30:1800+30"]

1. d4 {[%emt 0:00:00]} Nf6 {[%emt 0:00:00]} 2. Nc3 {[%emt 0:00:00]} d5 {[%emt 0:00:00]} 3. Bf4 {[%emt 0:00:00]} e6 {[%emt 0:00:31]} 4. e3 {[%emt 0:00:04]} a6 {[%emt 0:01:14]} 5. g4 {[%emt 0:03:35]} h6 {[%emt 0:01:57]} 6. h4 {[%emt 0:04:12] D00: 1 d4 d5: Unusual lines.} c5 {[%emt 0:05:52]} 7. Qf3 {[%emt 0:04:56]} Nc6 {[%emt 0:03:42] [#]} 8. g5 $2 $146 {[%emt 0:14:29]} (8. Nge2 $14 {stays ahead.}) ({Predecessor:} 8. O-O-O Qa5 9. Kb1 Nd7 10. g5 cxd4 11. exd4 hxg5 12. hxg5 Rxh1 13. Qxh1 g6 14. Nf3 {0-1 (49) Alekseenko,K (2563)-Sjugirov,S (2650) Sochi 2017}) 8... cxd4 {[%emt 0:02:26]} 9. gxf6 {[%emt 0:04:00]} (9. exd4 $17 Nxd4 10. Qd3 hxg5 11. Bxg5) 9... dxc3 {[%emt 0:00:16]} 10. fxg7 {[%emt 0:00:02]} Bxg7 {[%emt 0:00:11]} 11. b3 {[%emt 0:00:01]} Qf6 {[%emt 0:05:53]} (11... e5 $19 12. Bh2 Nb4) 12. Bg2 $2 {[%emt 0:06:51]} (12. Bc7 $17) 12... Nb4 {[%emt 0:00:51]} 13. Qe2 {[%emt 0:00:40]} Qg6 {[%emt 0:00:25]} 14. Kf1 {[%emt 0:01:06]} Qxc2 {[%emt 0:01:17]} 15. Nf3 {[%emt 0:00:54]} Bd7 {[%emt 0:01:31]} 16. Qxc2 {[%emt 0:00:59]} Nxc2 {[%emt 0:00:06]} 17. Rc1 {[%emt 0:00:02]} Bb5+ {[%emt 0:00:30]} 18. Kg1 {[%emt 0:00:01]} Nb4 {[%emt 0:00:23]} 19. a4 {[%emt 0:03:41]} Nd3 {[%emt 0:01:58]} 20. Kh2 {[%emt 0:00:33]} Nxc1 {[%emt 0:00:43]} 21. Rxc1 {[%emt 0:00:03]} Be2 {[%emt 0:01:40]} 22. Nd4 {[%emt 0:00:37]} Bxd4 {[%emt 0:02:17]} 23. exd4 {[%emt 0:00:04]} Kd7 {[%emt 0:02:44]} 24. Rxc3 {[%emt 0:00:45]} Rac8 {[%emt 0:00:16]} 25. Re3 {[%emt 0:02:14]} Bg4 {[%emt 0:00:27]} 26. Bf1 {[%emt 0:04:28]} Rc2 {[%emt 0:00:42]} 27. Bd3 {[%emt 0:02:30]} Rb2 {[%emt 0:00:52]} 28. Bg3 {[%emt 0:00:05]} Rc8 {[%emt 0:01:05]} 29. Kg2 {[%emt 0:01:15]} Ke7 {[%emt 0:00:49]} 30. Bh7 {[%emt 0:01:44]} h5 {[%emt 0:01:30]} 31. Bf4 {[%emt 0:01:51]} f5 {[%emt 0:01:03]} 32. Kg3 {[%emt 0:04:08]} Kf7 {[%emt 0:00:38]} 33. f3 {[%emt 0:04:58]} Rcc2 {[%emt 0:01:29]} 34. Be5 {[%emt 0:02:40]} Rg2+ {[%emt 0:02:14]} 35. Kf4 {[%emt 0:00:08] [#]} Bh3 {[%emt 0:01:20]} (35... Bxf3 $142 $1 36. Bh8 (36. Rxf3 Rg4+) 36... Bd1) 36. Rc3 {[%emt 0:01:57]} Rbc2 {[%emt 0:00:25]} 37. Rxc2 {[%emt 0:01:22]} Rxc2 {[%emt 0:00:08]} 38. Kg5 {[%emt 0:00:02]} Rc3 {[%emt 0:07:57]} 39. Kxh5 {[%emt 0:00:49]} Rxf3 {[%emt 0:00:12]} 40. Kg5 {[%emt 0:00:00]} Bg4 {[%emt 0:00:00]} 41. Bg6+ {[%emt 0:10:34]} Ke7 {[%emt 0:00:50]} 42. h5 {[%emt 0:01:20]} Bxh5 {[%emt 0:00:24]} 43. Bxh5 {[%emt 0:01:14]} Rxb3 {[%emt 0:00:06]} 44. a5 {[%emt 0:07:40]} b6 {[%emt 0:01:41]} 45. axb6 {[%emt 0:01:41]} Rxb6 {[%emt 0:00:07]} 46. Kf4 {[%emt 0:01:20]} Rb4 {[%emt 0:00:52]} 47. Ke3 {[%emt 0:01:59]} (47. Bc7 $142 Rxd4+ 48. Kg5) 47... a5 {[%emt 0:00:07]} 48. Kd3 {[%emt 0:01:41]} a4 {[%emt 0:00:07]} 49. Kc3 {[%emt 0:06:20]} a3 {[%emt 0:01:03]} 50. Kxb4 {[%emt 0:00:04]} a2 {[%emt 0:00:05]} 51. Kc3 $19 {[%emt 0:00:26]} a1=Q+ {[%emt 0:00:11]} 52. Kd3 {[%emt 0:00:03]} Qb1+ {[%emt 0:00:35]} 53. Kd2 {[%emt 0:01:15]} Qe4 {[%emt 0:00:10]} 0-1

[Event "56th Rubinstein Memorial A 2020"]
[Site "Polanica Zdroj"]
[Date "2020.08.21"]
[Round "7.7"]
[White "Galant, Ireneusz"]
[Black "Stachecki, Mikolaj"]
[Result "0-1"]
[ECO "A48"]
[WhiteElo "1803"]
[BlackElo "1806"]
[Annotator "NA RC"]
[PlyCount "120"]
[EventDate "2020.08.15"]
[EventType "swiss"]
[EventCountry "POL"]
[SourceTitle "playchess.com"]
[Source "ChessBase"]
[SourceQuality "1"]
[TimeControl "40/5400+30:1800+30"]

{[%evp 13,120,-6,8,-18,12,32767,32767,14,41,-38,54,18,4,26,20,13,14,32767,40,32767,82,32767,79,32767,32767,32767,32767,32767,32767,32767,32767,32767,-117,32767,32767,32767,32767,-106,32767,32767,-134,-97,-16,32767,32767,-74,0,32767,32767,32767,-70,-116,-38,-8,32767,32767,0,0,32767,32767,32767,-17,0,-99,-93,-105,-76,-126,-94,-125,-131,-311,-358,-346,-296,-337,32767,717,-430,-411,32767,32767,32767,32767,-275,32767,32767,-306,-301,32767,-550,-560,-1026,-1396,-4614,-4578,-5620,-29979,-29988,-29987,-29990,-29991,-29992,-29992,-29993,-29993,-29994,-29994,-29993]} 1. d4 {[%emt 0:00:00]} Nf6 {[%emt 0:00:00]} 2. Nf3 {[%emt 0:00:00]} g6 {[%emt 0:00:00]} 3. Bf4 {[%emt 0:00:17]} Bg7 {[%emt 0:00:08]} 4. Nc3 {[%emt 0:00:33]} d5 {[%emt 0:00:25]} 5. e3 {[%emt 0:00:12]} c6 {[%emt 0:00:59]} 6. Ne5 {[%emt 0:01:40]} Nfd7 {[%emt 0:12:16]} 7. Nd3 {[%emt 0:01:34]} a5 {[%emt 0:01:25]} 8. a4 {[%emt 0:00:16]} b6 {[%emt 0:03:49]} 9. h4 {[%emt 0:01:32]} h5 {[%emt 0:01:44]} 10. g4 {[%emt 0:04:10]} Nf6 {[%emt 0:06:28]} 11. gxh5 {[%emt 0:01:36]} (11. g5 $11 Ne4 12. Bg2) 11... Bg4 {[%emt 0:01:18]} (11... Nxh5 $11 12. Bh2 Bf5) 12. Be2 {[%emt 0:01:05]} Bxe2 {[%emt 0:00:25]} 13. Qxe2 {[%emt 0:00:22]} Nxh5 {[%emt 0:00:40]} 14. Bh2 {[%emt 0:05:07]} Nd7 {[%emt 0:23:43]} 15. O-O-O {[%emt 0:09:26]} Qc8 {[%emt 0:06:34]} 16. f3 {[%emt 0:06:47]} Qa6 {[%emt 0:08:10]} 17. Qf2 {[%emt 0:04:57]} Qc4 {[%emt 0:06:46]} 18. Kd2 {[%emt 0:00:40]} Bh6 {[%emt 0:01:12]} 19. f4 {[%emt 0:00:15]} Nhf6 {[%emt 0:01:26]} 20. Qg2 {[%emt 0:09:07]} e6 {[%emt 0:01:47]} 21. b3 {[%emt 0:03:06]} Qa6 {[%emt 0:00:08]} 22. Nf2 {[%emt 0:13:04]} b5 {[%emt 0:01:44]} 23. e4 {[%emt 0:06:05]} b4 {[%emt 0:01:08]} 24. Ne2 {[%emt 0:00:23]} dxe4 {[%emt 0:03:41]} 25. Nxe4 {[%emt 0:00:52]} Nxe4+ {[%emt 0:00:17]} 26. Qxe4 {[%emt 0:00:08]} Nf6 {[%emt 0:01:34]} 27. Qf3 {[%emt 0:04:13]} Nd5 {[%emt 0:02:04]} ({Better is} 27... Qb7 $17 28. Bg3 Qd7) 28. Kc1 {[%emt 0:00:25]} O-O-O {[%emt 0:04:47]} 29. Bg3 {[%emt 0:05:37]} Kb7 {[%emt 0:01:57]} (29... Nf6 $15) 30. Rh2 {[%emt 0:04:53]} Rc8 {[%emt 0:00:26]} 31. Kb2 {[%emt 0:03:45]} Bg7 {[%emt 0:00:12]} 32. Ka2 {[%emt 0:05:57]} f5 {[%emt 0:02:18]} (32... Rh5 $17 33. c4 bxc3 34. Nxc3 Qb6 35. Nxd5 Rxd5) 33. Be1 {[%emt 0:03:59]} c5 {[%emt 0:01:35]} 34. c4 {[%emt 0:01:04]} bxc3 $1 {[%emt 0:00:21]} 35. Nxc3 {[%emt 0:00:17]} Bxd4 {[%emt 0:01:39]} 36. Nxd5 {[%emt 0:00:29]} Qc6 {[%emt 0:01:32]} 37. Re2 {[%emt 0:01:29]} Qxd5 {[%emt 0:01:04]} 38. Qxd5+ {[%emt 0:00:33]} (38. Qg3 $11 {remains equal.}) 38... exd5 {[%emt 0:00:04]} 39. Re7+ {[%emt 0:00:51]} Rc7 {[%emt 0:00:35]} 40. Re6 {[%emt 0:00:00]} Rc6 {[%emt 0:00:00]} 41. Re7+ {[%emt 0:03:46]} Kb6 {[%emt 0:12:30]} 42. Rd7 $2 {[%emt 0:03:07]} (42. Re2 $17 {was necessary.}) 42... Re6 {[%emt 0:00:38]} 43. Rxd5 {[%emt 0:02:18]} Kc6 {[%emt 0:00:08]} 44. R5xd4 {[%emt 0:01:08]} cxd4 {[%emt 0:00:10]} 45. Bxa5 {[%emt 0:00:06]} Rxh4 {[%emt 0:01:29]} 46. Rxd4 {[%emt 0:02:16]} Re4 {[%emt 0:00:23]} 47. Rd2 {[%emt 0:00:56]} Rhxf4 {[%emt 0:00:17]} 48. Rc2+ {[%emt 0:00:18]} Kb7 {[%emt 0:01:20]} 49. Bd8 {[%emt 0:01:36]} Rf1 {[%emt 0:03:21]} 50. Rc7+ {[%emt 0:02:47]} Kb8 {[%emt 0:00:20]} 51. Rc6 {[%emt 0:00:30]} f4 {[%emt 0:08:50]} 52. Rxg6 {[%emt 0:00:10]} f3 {[%emt 0:00:17]} 53. Bf6 {[%emt 0:12:22]} f2 {[%emt 0:01:29]} 54. Rg8+ {[%emt 0:01:42]} Kb7 {[%emt 0:00:29]} 55. Rf8 {[%emt 0:00:12] [#]} Rf4 {[%emt 0:00:39]} 56. Rf7+ {[%emt 0:01:50]} Kc6 {[%emt 0:01:42]} 57. b4 {[%emt 0:00:52] [#]} Ra1+ $1 {[%emt 0:02:28] Decoy, Clearance, Promotion} 58. Kb3 {[%emt 0:00:11]} Rb1+ {[%emt 0:00:20]} 59. Kc3 {[%emt 0:00:14]} f1=Q {[%emt 0:00:31]} 60. b5+ {[%emt 0:00:11]} Rxb5 {[%emt 0:01:34]} 0-1

[Event "56th Rubinstein Memorial A 2020"]
[Site "Polanica Zdroj"]
[Date "2020.08.21"]
[Round "7.20"]
[White "Rog, Bartlomiej"]
[Black "Jedynak, January"]
[Result "1-0"]
[ECO "C43"]
[WhiteElo "1866"]
[BlackElo "1887"]
[Annotator "NA RC"]
[PlyCount "71"]
[EventDate "2020.08.15"]
[EventType "swiss"]
[EventCountry "POL"]
[SourceTitle "playchess.com"]
[Source "ChessBase"]
[SourceQuality "1"]
[TimeControl "40/5400+30:1800+30"]

1. e4 {[%emt 0:00:00]} e5 {[%emt 0:10:03]} 2. Nf3 {[%emt 0:00:00]} Nf6 {[%emt 0:00:13]} 3. d4 {[%emt 0:00:00]} Nxe4 {[%emt 0:00:09]} 4. Bd3 {[%emt 0:00:02]} d5 {[%emt 0:00:11]} 5. dxe5 {[%emt 0:00:09]} Be7 {[%emt 0:16:12]} 6. O-O {[%emt 0:04:17]} Nc5 {[%emt 0:05:19]} 7. Be2 {[%emt 0:00:36] C43: Petroff Defence: 3 d4.} O-O {[%emt 0:01:09]} 8. Be3 {[%emt 0:04:08]} c6 {[%emt 0:08:40]} 9. Nd4 {[%emt 0:04:24] [#]} Ne6 $146 {[%emt 0:02:59]} ({Predecessor:} 9... Qc7 10. f4 f6 11. exf6 Bxf6 12. Nc3 Ne6 13. Nb3 Nd7 14. Qd2 Nb6 15. f5 d4 16. fxe6 dxc3 17. bxc3 Bxe6 {½-½ (43) Shirov,A (2713)-Alekseev,E (2662) Saratov 2011}) 10. Nxe6 {[%emt 0:05:36]} Bxe6 {[%emt 0:00:17]} 11. f4 {[%emt 0:01:32]} f5 {[%emt 0:08:41]} 12. c3 {[%emt 0:06:08]} c5 {[%emt 0:01:53]} 13. Nd2 {[%emt 0:09:05]} Nc6 {[%emt 0:09:12]} 14. Nb3 {[%emt 0:01:55]} (14. Nf3 $14) 14... Qb6 {[%emt 0:02:17]} 15. Qc2 {[%emt 0:03:34]} Rac8 {[%emt 0:06:44]} 16. Rfd1 {[%emt 0:08:59]} Rfd8 {[%emt 0:04:10]} 17. Nd2 {[%emt 0:05:16]} Nd4 {[%emt 0:02:17]} 18. Bxd4 {[%emt 0:02:40]} cxd4 {[%emt 0:00:10]} 19. Kh1 {[%emt 0:00:21]} dxc3 {[%emt 0:01:08]} 20. bxc3 {[%emt 0:00:02]} Qe3 {[%emt 0:01:08]} 21. Nf3 {[%emt 0:05:53]} Rxc3 {[%emt 0:05:35]} 22. Qb2 {[%emt 0:02:28] [#]} Ba3 {[%emt 0:03:13]} (22... d4 $1 $17 23. Qxb7 Bc5) 23. Qxb7 {[%emt 0:04:12]} Qxe2 {[%emt 0:00:39]} (23... d4 $11 24. Qa6 Bf7) 24. Nd4 {[%emt 0:00:12] Double Attack} Qg4 {[%emt 0:07:13]} 25. Nxe6 {[%emt 0:00:03]} Rc2 {[%emt 0:00:18]} 26. Rg1 {[%emt 0:00:49]} Rdc8 {[%emt 0:01:43]} 27. Qxd5 {[%emt 0:05:26]} Kh8 {[%emt 0:00:55]} 28. Rad1 {[%emt 0:04:04]} h6 {[%emt 0:00:36]} 29. Qb7 {[%emt 0:12:34]} R8c3 $2 {[%emt 0:00:28]} (29... Qg6) 30. Rd8+ {[%emt 0:02:49]} Kh7 {[%emt 0:00:05] [#]} 31. Rd7 $18 {[%emt 0:00:56]} Bf8 {[%emt 0:00:58]} 32. Nxf8+ {[%emt 0:00:09]} Kh8 {[%emt 0:00:20]} 33. Rd8 {[%emt 0:02:44]} Rc6 {[%emt 0:00:59]} 34. Nd7+ {[%emt 0:01:01]} Kh7 {[%emt 0:00:17]} 35. Nf6+ {[%emt 0:00:16]} Rxf6 {[%emt 0:00:47]} 36. exf6 {[%emt 0:00:01]} 1-0